{"text_format":"3","workbook":"xlsx","n_sheets":1,"sheets":["PRICING SCHEDULE (Tab 1)"],"not_rendered":{"images":1,"defined_names":2},"read":"whole","date_system":"1900"}

{"sheet":"PRICING SCHEDULE (Tab 1)","index":0,"n_rows":32,"n_cols":17,"rows_kept":32,"merged":[[11,2,11,3],[12,2,12,3],[12,5,14,5],[13,2,13,3],[14,2,14,3],[17,4,17,6],[17,7,17,9],[17,10,17,12],[28,1,31,1],[28,2,28,3],[28,4,28,5],[29,2,29,3],[30,2,30,3],[30,4,30,5],[31,2,31,3],[31,4,31,5]]}
[]
[]
["RFx No","RFB 2840-2023"]
["RFx Title","Appointment of a service provider to provide Financial Reporting Software Solution for a period of three (3) years."]
["Bidder Name "]
[]
["1. INSTRUCTION FOR COMPLETING THE PRICING SCHEDULE"]
["(a)  Bidder must complete/enter YELLOW cells only"]
["(b)  Unit and Line prices must be VAT EXCLUSIVE and in South African Rand (ZAR) currency."]
["(c) The price must include all cost to deliver the goods or render the service, including all applicable taxes, duty fees, logistics/delivery, storage, labour, overtime and subsistance and travel"]
["(d)  Prices that are dependent on Rate of Exchange (ROE) must use ROE indicated below, then enter in Column \"Forex %\" the percentage of the price that is ROE dependent (0% means the price is not ROE dependent)"]
[null,"Foreign currency","South African Rand (ZAR) exchange rate "]
[null,"1 US Dollar",{"v":18.94,"d":"R18.94"},null,null,"Mark with an X, which ROE is applicable"]
[null,"1 Euro",{"v":20.65,"d":"R20.65"}]
[null,"1 Pound (UK)",{"v":24.05,"d":"R24.05"}]
[]
[]
[{"$nulls":4},"YEAR 1",null,null,"YEAR 2",null,null,"YEAR 3",null,null,"TOTAL"]
["Item No","Goods/Service description","Unit of measure","Forex %","Qty ","Unit Price \n(Excl VAT)","Line Price Y1","Qty","Unit Price \n(Excl VAT)","Line Price Y2","Qty","Unit Price \n(Excl VAT)","Line Price Y3","Line Price Term \n(Excl VAT)","Forex Price portion","BRAND / MODEL","Price clarification comment"]
[1,"Product and solution to be provided",{"$nulls":4},{"$f":"G21+G22+G23","v":0},null,null,{"$f":"J21+J22+J23","v":0},null,null,{"$f":"M21+M22+M23","v":0},{"$f":"N21+N22+N23","v":0},{"$f":"SUM(O22:O23,O21)","v":0}]
["1.1","Provision of financial reporting software",null,{"v":0,"d":"0%"},1,0,{"$f":"E21*F21","v":0},null,0,{"$f":"H21*I21","v":0},null,0,{"$f":"K21*L21","v":0},{"$f":"SUM(G21,J21,M21)","v":0},{"$f":"(D21*N21)","v":0}]
["1.2","Maintanance and support for three (3) years","Annually",{"v":0,"d":"0%"},12,0,{"$f":"E22*F22","v":0},12,0,{"$f":"H22*I22","v":0},12,0,{"$f":"K22*L22","v":0},{"$f":"SUM(G22,J22,M22)","v":0},{"$f":"(D22*N22)","v":0}]
["1.3","Training of relevant staff","Annually",{"v":0,"d":"0%"},5,0,0,null,0,0,null,0,0,{"$f":"SUM(G23,J23,M23)","v":0},{"$f":"(D23*N23)","v":0}]
[null,"TOTAL BID PRICE  (EXCL VAT)",{"$nulls":4},{"$f":"SUM(G21,G22:G23)","v":0},null,null,{"$f":"SUM(J21,J22:J23)","v":0},null,null,{"$f":"SUM(M21,M22:M23)","v":0},{"$f":"N21+N22+N23","v":0},{"$f":"SUM(O21:O23)","v":0}]
[null,"VAT (@15%)",{"$nulls":4},{"$f":"G24*0.15","v":0},null,null,{"$f":"J24*0.15","v":0},null,null,{"$f":"M24*0.15","v":0},{"$f":"N24*0.15","v":0}]
[null,"TOTAL  BID PRICE (INCL VAT)",{"$nulls":4},{"$f":"G24+G25","v":0},null,null,{"$f":"J24+J25","v":0},null,null,{"$f":"M24+M25","v":0},{"$f":"N24+N25","v":0}]
[]
[]
[null,"I, the bidder, confirm that the price(s) and rate(s) quoted cover all the goods and/or works specified in the bidding documents; that the price(s) or rate(s) cover all my obligations and I accept that any mistakes regarding price(s), rate(s) or calculations will be at my own risk.\n[Note: First convert to PDF, then add signature]"]
[null,null,"Name",null,"Capacity"]
[]
[null,null,"Signature (above)",null,"Date"]